bitfinex/quotes_BTCUSD_20240929
["timestamp","ask_amount","ask_price","bid_price","bid_amount"]
[1727636269530,0.151616,65915.0,65914.0,0.18829009]
[1727636274489,0.151616,65915.0,65914.0,0.172539]
[1727636282391,0.151616,65915.0,65914.0,0.25542534]
[1727636291831,0.151616,65915.0,65914.0,0.172539]
[1727636291832,0.246316,65915.0,65914.0,0.172539]
[1727636292275,0.151616,65915.0,65914.0,0.172539]
[1727636302437,0.151616,65915.0,65914.0,0.17214987]
[1727636327061,0.150816,65915.0,65914.0,0.17214987]
[1727636327626,0.150616,65915.0,65914.0,0.15214987]
[1727636327821,0.150616,65915.0,65914.0,0.25527523]
[1727636328023,0.149916,65915.0,65914.0,0.26727523]
[1727636328233,0.149916,65915.0,65914.0,0.3477207]
[1727636328485,0.149716,65915.0,65914.0,0.3477207]
[1727636328685,0.149616,65915.0,65914.0,0.3477207]
[1727636328905,0.149016,65915.0,65914.0,0.3477207]
[1727636329104,0.148916,65915.0,65914.0,0.3477207]
[1727636329311,0.148716,65915.0,65914.0,0.3477207]
[1727636329543,0.148616,65915.0,65914.0,0.3577207]
[1727636329757,0.148116,65915.0,65914.0,0.3577207]
[1727636329975,0.148016,65915.0,65914.0,0.3577207]
[1727636330186,0.147816,65915.0,65914.0,0.3577207]
[1727636330393,0.147616,65915.0,65914.0,0.3577207]
[1727636330600,0.147116,65915.0,65914.0,0.3577207]
[1727636330806,0.147016,65915.0,65914.0,0.3477207]
[1727636331018,0.146916,65915.0,65914.0,0.3477207]
[1727636331222,0.146616,65915.0,65914.0,0.3597207]
[1727636331464,0.148272,65915.0,65914.0,0.3597207]
[1727636335224,0.148272,65915.0,65914.0,0.27927523]
[1727636335435,0.148272,65915.0,65914.0,0.29518928]
[1727636336972,0.148272,65915.0,65914.0,0.19206392]
[1727636337588,0.148272,65915.0,65914.0,0.17614987]
[1727636337794,0.148272,65915.0,65914.0,0.19200637]
[1727636340170,0.148272,65915.0,65914.0,0.17614987]
[1727636341116,0.148272,65915.0,65914.0,0.19200077]
[1727636343018,0.148272,65915.0,65914.0,0.29227328]
[1727636343363,0.148272,65915.0,65914.0,0.27642238]
[1727636343580,0.148272,65915.0,65914.0,0.29227133]
[1727636350159,0.148272,65915.0,65914.0,0.27642238]
[1727636350386,0.148272,65915.0,65914.0,0.29227144]
[1727636353446,0.148272,65915.0,65914.0,0.27642238]
[1727636353662,0.148272,65915.0,65914.0,0.292276]
[1727636356778,0.148272,65915.0,65914.0,0.27642238]
[1727636356996,0.148272,65915.0,65914.0,0.29228055]
[1727636360165,0.148272,65915.0,65914.0,0.27642238]
[1727636360312,0.148272,65915.0,65914.0,0.29226929]
[1727636363742,0.148272,65915.0,65914.0,0.27642238]
[1727636363951,0.148272,65915.0,65914.0,0.29227279]
[1727636369221,0.148272,65915.0,65914.0,0.19200028]
[1727636373828,0.148272,65915.0,65914.0,0.17614987]
[1727636374253,0.148272,65915.0,65914.0,0.19187158]
[1727636374461,0.146872,65915.0,65914.0,0.19187158]
[1727636377356,0.146872,65915.0,65914.0,0.19187198]
[1727636380570,0.146872,65915.0,65914.0,0.17614987]
[1727636386428,0.14668941,65915.0,65914.0,0.26593261]
[1727636390133,0.14668941,65915.0,65914.0,0.17614987]
[1727636415311,0.12676413,65915.0,65914.0,0.17614987]
[1727636417198,0.12676413,65915.0,65914.0,0.16414987]
[1727636417408,0.12676413,65915.0,65914.0,0.17414987]
[1727636418035,0.12676413,65915.0,65914.0,0.16214987]
[1727636418448,0.12676413,65915.0,65914.0,0.17214987]
[1727636418895,0.12676413,65915.0,65914.0,0.19514987]
[1727636419558,0.12676413,65915.0,65914.0,0.18514987]
[1727636420030,0.12676413,65915.0,65914.0,0.19514987]
[1727636420247,0.12676413,65915.0,65914.0,0.18514987]
[1727636420480,0.12676413,65915.0,65914.0,0.19514987]
[1727636420984,0.12676413,65915.0,65914.0,0.18514987]
[1727636421193,0.12676413,65915.0,65914.0,0.18814987]
[1727636421620,0.12676413,65915.0,65914.0,0.20114987]
[1727636430200,0.22456413,65915.0,65914.0,0.17814987]
[1727636430624,0.27012664,65915.0,65914.0,0.17814987]
[1727636430840,0.2929079,65915.0,65914.0,0.17814987]
[1727636431282,0.22456413,65915.0,65914.0,0.15214987]
[1727636431716,0.22456413,65915.0,65914.0,0.15614987]
[1727636431961,0.22456413,65915.0,65914.0,0.15214987]
[1727636432204,0.27009614,65915.0,65914.0,0.15514987]
[1727636432411,0.22456413,65915.0,65914.0,0.15514987]
[1727636432619,0.27009614,65915.0,65914.0,0.15514987]
[1727636432840,0.22456413,65915.0,65914.0,0.15514987]
[1727636433277,0.27008714,65915.0,65914.0,0.15914987]
[1727636433693,0.27008714,65915.0,65914.0,0.15514987]
[1727636434114,0.27008714,65915.0,65914.0,0.15914987]
[1727636434964,0.22456413,65915.0,65914.0,0.15914987]
[1727636435423,0.27008714,65915.0,65914.0,0.15914987]
[1727636436338,0.22456413,65915.0,65914.0,0.15914987]
[1727636438283,0.22456413,65915.0,65914.0,0.23583536]
[1727636439132,0.12676413,65915.0,65914.0,0.23583536]
[1727636439351,0.12676413,65915.0,65914.0,0.15914987]
[1727636440210,0.12676413,65915.0,65914.0,0.15514987]
[1727636440640,0.12676413,65915.0,65914.0,0.15814987]
[1727636440870,0.12676413,65915.0,65914.0,0.16414987]
[1727636448525,0.12676413,65915.0,65914.0,0.24133536]
[1727636453824,0.12676413,65915.0,65914.0,0.26433536]
[1727636455153,0.12676413,65915.0,65914.0,0.25233536]
[1727636455519,0.12676413,65915.0,65914.0,0.25833536]
[1727636456107,0.12676413,65915.0,65914.0,0.25233536]
[1727636456303,0.12676413,65915.0,65914.0,0.26133536]
[1727636457162,0.12676413,65915.0,65914.0,0.18414987]
[1727636457561,0.12676413,65915.0,65914.0,0.19214987]
[1727636457916,0.12676413,65915.0,65914.0,0.18414987]
[1727636458310,0.12676413,65915.0,65914.0,0.19314987]
[1727636486896,0.12676413,65915.0,65914.0,0.34843781]
[1727636487136,0.12676413,65915.0,65914.0,0.58742119]
[1727636487352,0.12676413,65915.0,65914.0,0.77052119]
[1727636487997,0.12676413,65915.0,65914.0,0.76152119]
[1727636488245,0.12676413,65915.0,65914.0,0.75252119]
[1727636488452,0.12676413,65915.0,65914.0,0.76452119]
[1727636488664,0.12676413,65915.0,65914.0,0.75252119]
[1727636489011,0.12676413,65915.0,65914.0,0.76652119]
[1727636489210,0.12676413,65915.0,65914.0,0.77552119]
[1727636489687,0.12676413,65915.0,65914.0,0.76652119]
[1727636490026,0.12676413,65915.0,65914.0,0.78052119]
[1727636516394,0.12676413,65915.0,65914.0,0.68562119]
[1727636522019,0.12676413,65915.0,65914.0,0.68762119]
[1727636522165,0.12676413,65915.0,65914.0,0.65962119]
[1727636522675,0.12676413,65915.0,65914.0,0.67162119]
[1727636522908,0.12676413,65915.0,65914.0,0.76882119]
[1727636523683,0.12676413,65915.0,65914.0,0.78282119]
[1727636523907,0.12676413,65915.0,65914.0,0.76882119]
[1727636524134,0.12676413,65915.0,65914.0,0.75482119]
[1727636524340,0.12676413,65915.0,65914.0,0.76882119]
[1727636524541,0.12676413,65915.0,65914.0,0.78282119]
[1727636529497,0.12676413,65915.0,65914.0,0.82834203]
[1727636530048,0.12676413,65915.0,65914.0,0.78282119]
[1727636530271,0.12676413,65915.0,65914.0,0.82834203]
[1727636531322,0.12676413,65915.0,65914.0,0.78282119]
[1727636532321,0.12676413,65915.0,65914.0,0.96196238]
[1727636532510,0.12676413,65915.0,65914.0,0.86476238]
[1727636533439,0.12676413,65915.0,65914.0,0.86476143]
[1727636533640,0.12676413,65915.0,65914.0,0.86676143]
[1727636534738,0.12676413,65915.0,65914.0,0.86476143]
[1727636536969,0.12676413,65915.0,65914.0,0.86676143]
[1727636538249,0.12676413,65915.0,65914.0,0.86476143]
[1727636538434,0.12676413,65915.0,65914.0,0.86553479]
[1727636538764,0.12676413,65915.0,65914.0,0.86753479]
[1727636539997,0.12676413,65915.0,65914.0,0.86553479]
[1727636541373,0.12676413,65915.0,65914.0,0.86753479]
[1727636543315,0.12676413,65915.0,65914.0,0.86763295]
[1727636543721,0.12676413,65915.0,65914.0,0.95877254]
[1727636544332,0.12676413,65915.0,65914.0,0.86563295]
[1727636545491,0.12676413,65915.0,65914.0,0.78253295]
[1727636547992,0.12676413,65915.0,65914.0,0.78255215]
[1727636548434,0.12676413,65915.0,65914.0,0.60252119]
[1727636548638,0.12676413,65915.0,65914.0,0.78255444]
[1727636549457,0.12676413,65915.0,65914.0,0.85970244]
[1727636549927,0.12676413,65915.0,65914.0,0.87370244]
[1727636550846,0.12676413,65915.0,65914.0,0.85970244]
[1727636551265,0.12676413,65915.0,65914.0,0.78255444]
[1727636551473,0.12676413,65915.0,65914.0,0.87370423]
[1727636551681,0.12676413,65915.0,65914.0,0.85970423]
[1727636552084,0.12676413,65915.0,65914.0,0.87370423]
[1727636552301,0.12676413,65915.0,65914.0,0.87570423]
[1727636552964,0.12676413,65915.0,65914.0,0.87576063]
[1727636554033,0.12676413,65915.0,65914.0,0.87776063]
[1727636554948,0.12676413,65915.0,65914.0,0.78661029]
[1727636556926,0.12676413,65915.0,65914.0,0.87776325]
[1727636559447,0.12676413,65915.0,65914.0,1.07116325]
[1727636559647,0.12676413,65915.0,65914.0,1.01042029]
[1727636560482,0.12676413,65915.0,65914.0,1.18337987]
[1727636560908,0.12676413,65915.0,65914.0,1.18331005]
[1727636561116,0.12357961,65915.0,65914.0,1.19731005]
[1727636561319,0.10842283,65915.0,65914.0,1.19731005]
[1727636561446,0.10231367,65915.0,65914.0,1.06065436]
[1727636561654,0.10231367,65915.0,65914.0,1.03265436]
[1727636561858,0.10231367,65915.0,65914.0,1.04665436]
[1727636562955,0.10231367,65915.0,65914.0,1.06065436]
[1727636563538,0.10231367,65915.0,65914.0,1.04665436]
[1727636563667,0.10231367,65915.0,65914.0,1.06065436]
[1727636564463,0.10231367,65915.0,65914.0,1.01042029]
[1727636565226,0.10231367,65915.0,65914.0,1.06060231]
[1727636565427,0.10231367,65915.0,65914.0,1.01042029]
[1727636566329,0.10231367,65915.0,65914.0,1.06059828]
[1727636566533,0.10231367,65915.0,65914.0,1.01042029]
[1727636567525,0.10231367,65915.0,65914.0,0.98242029]
[1727636567780,0.10231367,65915.0,65914.0,1.01042029]
[1727636567986,0.10231367,65915.0,65914.0,0.99642029]
[1727636568396,0.10231367,65915.0,65914.0,0.98242029]
[1727636568606,0.10231367,65915.0,65914.0,1.00722009]
[1727636569437,0.10231367,65915.0,65914.0,1.02122009]
[1727636575759,0.10231367,65915.0,65914.0,1.01042029]
[1727636580998,0.10231367,65915.0,65914.0,1.07102285]
[1727636583743,0.10231367,65915.0,65914.0,1.12116703]
[1727636585357,0.10231367,65915.0,65914.0,1.12095476]
[1727636586034,0.10231367,65915.0,65914.0,1.07081058]
[1727636586274,0.10231367,65915.0,65914.0,1.12091836]
[1727636590051,0.10231367,65915.0,65914.0,1.13188551]
[1727636590496,0.10231367,65915.0,65914.0,1.11788551]
[1727636590778,0.10231367,65915.0,65914.0,1.10388551]
[1727636591048,0.10231367,65915.0,65914.0,1.10691836]
[1727636591985,0.10231367,65915.0,65914.0,1.12091836]
[1727636592476,0.10231367,65915.0,65914.0,1.10691836]
[1727636592713,0.10231367,65915.0,65914.0,1.12091836]
[1727636594897,0.10231367,65915.0,65914.0,1.12443759]
[1727636595731,0.10231367,65915.0,65914.0,1.26074755]
[1727636595934,0.10231367,65915.0,65914.0,1.12443759]
[1727636598113,0.10231367,65915.0,65914.0,1.26074755]
[1727636598367,0.10231367,65915.0,65914.0,1.12443759]
[1727636599392,0.10231367,65915.0,65914.0,1.26074755]
[1727636602175,0.04162967,65915.0,65914.0,1.26074755]
[1727636602402,6.7e-07,65915.0,65914.0,1.26083475]
[1727636603229,6.7e-07,65915.0,65914.0,1.12443759]
[1727636609510,6.7e-07,65915.0,65914.0,1.12617533]
[1727636611732,6.7e-07,65915.0,65914.0,1.13687021]
[1727636614257,6.7e-07,65915.0,65914.0,1.13681527]
[1727636615954,6.7e-07,65915.0,65914.0,1.12612039]
[1727636618175,6.7e-07,65915.0,65914.0,1.02672039]
[1727636619254,6.7e-07,65915.0,65914.0,1.02677098]
[1727636620945,6.7e-07,65915.0,65914.0,0.93177098]
[1727636621168,0.09250067,65915.0,65914.0,0.97521645]
[1727636621425,0.09250067,65915.0,65914.0,1.06500321]
[1727636621639,0.09250067,65915.0,65914.0,1.02889543]
[1727636621848,0.09250067,65915.0,65914.0,0.89232567]
[1727636622055,0.09250067,65915.0,65914.0,0.86432567]
[1727636622292,0.09250067,65915.0,65914.0,0.87832567]
[1727636622544,0.09250067,65915.0,65914.0,0.91532567]
[1727636622772,0.09250067,65915.0,65914.0,0.91732567]
[1727636623453,0.09250067,65915.0,65914.0,0.90332567]
[1727636623670,0.09250067,65915.0,65914.0,0.89371986]
[1727636623878,0.09250067,65915.0,65914.0,0.90771986]
[1727636624100,0.09250067,65915.0,65914.0,0.90571986]
[1727636624975,0.09250067,65915.0,65914.0,0.91971986]
[1727636629720,0.09250067,65915.0,65914.0,0.92171986]
[1727636630789,0.09250067,65915.0,65914.0,0.91971986]
[1727636633408,0.09250067,65915.0,65914.0,0.91757141]
[1727636633870,0.09250067,65915.0,65914.0,0.91957141]
[1727636635608,0.09250067,65915.0,65914.0,1.03326297]
[1727636637123,6.7e-07,65915.0,65914.0,1.03126297]
[1727636637339,6.7e-07,65915.0,65914.0,0.91957141]
[1727636638105,6.7e-07,65915.0,65914.0,0.91955983]
[1727636638523,6.7e-07,65915.0,65914.0,1.03324796]
[1727636640926,6.7e-07,65915.0,65914.0,0.91955983]
[1727636642515,6.7e-07,65915.0,65914.0,0.90555983]
[1727636642723,6.7e-07,65915.0,65914.0,0.89155983]
[1727636642935,6.7e-07,65915.0,65914.0,0.90555983]
[1727636643152,6.7e-07,65915.0,65914.0,0.93033241]
[1727636643355,6.7e-07,65915.0,65914.0,0.91633241]
[1727636643714,6.7e-07,65915.0,65914.0,0.93033241]
[1727636644106,6.7e-07,65915.0,65914.0,0.91633241]
[1727636644323,6.7e-07,65915.0,65914.0,0.93033241]
[1727636646027,6.7e-07,65915.0,65914.0,0.91955983]
[1727636646232,6.7e-07,65915.0,65914.0,0.91923681]
[1727636646864,6.7e-07,65915.0,65914.0,1.10578814]
[1727636647072,6.7e-07,65915.0,65914.0,0.97073152]
[1727636647280,6.7e-07,65915.0,65914.0,1.05117699]
[1727636647484,6.7e-07,65915.0,65914.0,1.03717699]
[1727636647904,6.7e-07,65915.0,65914.0,1.05117699]
[1727636648110,6.7e-07,65915.0,65914.0,1.03717699]
[1727636648318,6.7e-07,65915.0,65914.0,1.02317699]
[1727636648730,6.7e-07,65915.0,65914.0,1.03717699]
[1727636649535,6.7e-07,65915.0,65914.0,1.05117699]
[1727636649741,6.7e-07,65915.0,65914.0,1.03717699]
[1727636649914,6.7e-07,65915.0,65914.0,1.05117699]
[1727636650407,6.7e-07,65915.0,65914.0,1.05035858]
[1727636654177,6.7e-07,65915.0,65914.0,1.06120192]
[1727636654615,6.7e-07,65915.0,65914.0,1.19758343]
[1727636654874,6.7e-07,65915.0,65914.0,1.18674132]
[1727636656224,6.7e-07,65915.0,65914.0,1.05035858]
[1727636656655,6.7e-07,65915.0,65914.0,0.96991311]
[1727636657061,6.7e-07,65915.0,65914.0,1.18674264]
[1727636657937,6.7e-07,65915.0,65914.0,1.05035858]
[1727636659745,6.7e-07,65915.0,65914.0,1.06110276]
[1727636660470,6.7e-07,65915.0,65914.0,1.06375529]
[1727636661130,6.7e-07,65915.0,65914.0,1.05301111]
[1727636668899,6.7e-07,65915.0,65914.0,1.05298885]
[1727636670439,0.22980156,65922.0,65921.0,0.007]
[1727636670655,0.22980156,65922.0,65921.0,0.70810142]
[1727636670861,0.001656,65922.0,65921.0,0.89868656]
[1727636671659,0.001656,65922.0,65921.0,0.91268656]
[1727636672144,0.001656,65922.0,65921.0,0.92668656]
[1727636675315,0.001656,65922.0,65921.0,0.92662238]
[1727636678106,0.001656,65922.0,65921.0,0.84417691]
[1727636678335,0.001656,65922.0,65921.0,0.92462238]
[1727636679843,0.001656,65922.0,65921.0,0.78295443]
[1727636680048,0.001656,65922.0,65921.0,0.7983195]
[1727636680630,0.001656,65922.0,65921.0,0.7843195]
[1727636680805,0.001656,65922.0,65921.0,0.7983195]
[1727636681573,0.001656,65922.0,65921.0,0.8123195]
[1727636681782,0.001656,65922.0,65921.0,0.7983195]
[1727636682246,0.001656,65922.0,65921.0,0.8123195]
[1727636689284,0.001656,65922.0,65921.0,0.8143195]
[1727636694602,0.001656,65922.0,65921.0,0.8145769]
[1727636702869,0.001656,65922.0,65921.0,0.81606689]
[1727636708890,0.001656,65922.0,65921.0,0.89616689]
[1727636714243,0.001656,65922.0,65921.0,0.89416689]
[1727636714442,0.001656,65922.0,65921.0,0.89616689]
[1727636718093,0.001656,65922.0,65921.0,0.88216689]
[1727636718708,0.001656,65922.0,65921.0,0.89616689]
[1727636718916,0.001656,65922.0,65921.0,0.88216689]
[1727636719115,0.001656,65922.0,65921.0,0.89616689]
[1727636719910,0.001656,65922.0,65921.0,0.80806689]
[1727636726847,0.001656,65922.0,65921.0,0.80870368]
[1727636729042,0.001656,65922.0,65921.0,0.61435919]
[1727636729259,0.001656,65922.0,65921.0,0.80871347]
[1727636729462,0.001656,65922.0,65921.0,0.81479247]
[1727636730087,0.001656,65922.0,65921.0,0.92859699]
[1727636731744,0.001656,65922.0,65921.0,0.92670991]
[1727636731973,0.001656,65922.0,65921.0,0.90395563]
[1727636733104,0.001656,65922.0,65921.0,0.81291021]
[1727636736319,0.001656,65922.0,65921.0,0.88117659]
[1727636736542,0.001656,65922.0,65921.0,0.87945308]
[1727636736994,0.001656,65922.0,65921.0,0.72207783]
[1727636737207,0.001656,65922.0,65921.0,0.52325033]
[1727636737387,0.001656,65922.0,65921.0,0.45498394]
[1727636737636,0.097956,65922.0,65921.0,0.45498394]
[1727636737843,0.097956,65922.0,65921.0,0.50049634]
[1727636739355,0.097956,65922.0,65921.0,0.45498394]
[1727636743303,0.097956,65922.0,65921.0,0.45581094]
[1727636750437,0.092956,65922.0,65921.0,0.612199]
[1727636754896,0.09461,65922.0,65921.0,0.612199]
[1727636759182,0.001654,65922.0,65921.0,0.612199]
[1727636759382,0.001654,65922.0,65921.0,0.69264447]
[1727636764436,0.001654,65922.0,65921.0,0.81784057]
[1727636764606,0.001654,65922.0,65921.0,0.96935383]
[1727636764818,0.001654,65922.0,65921.0,1.08309408]
[1727636765125,0.001654,65922.0,65921.0,1.17949408]
[1727636765528,0.001654,65922.0,65921.0,1.06575383]
[1727636767610,0.001654,65922.0,65921.0,1.17945653]
[1727636767854,0.001654,65922.0,65921.0,1.06575383]
[1727636768504,0.001654,65922.0,65921.0,1.17877431]
[1727636768708,0.001654,65922.0,65921.0,1.06507103]
[1727636769337,0.001654,65922.0,65921.0,1.17877502]
[1727636770030,0.001654,65922.0,65921.0,1.06507103]
[1727636773389,0.001654,65922.0,65921.0,1.06495684]
[1727636773605,0.001654,65922.0,65921.0,1.17864467]
[1727636775743,0.001654,65922.0,65921.0,1.06495684]
[1727636776432,0.001654,65922.0,65921.0,1.17863118]
[1727636776666,0.001654,65922.0,65921.0,1.06495684]
[1727636777165,0.001654,65922.0,65921.0,1.17863108]
[1727636778425,0.001654,65922.0,65921.0,1.1785489]
[1727636780656,0.001654,65922.0,65921.0,1.17779085]
[1727636782959,0.001654,65922.0,65921.0,0.86998642]
[1727636783205,0.001654,65922.0,65921.0,1.17764723]
[1727636783442,0.001654,65922.0,65921.0,1.13220544]
[1727636784186,0.001654,65922.0,65921.0,1.03380544]
[1727636784436,0.001654,65922.0,65921.0,0.95410544]
[1727636787777,0.001654,65922.0,65921.0,0.95459353]
[1727636788659,0.001654,65922.0,65921.0,0.79820547]
[1727636789219,0.001654,65922.0,65921.0,0.79821244]
[1727636790818,0.001654,65922.0,65921.0,0.60368356]
[1727636791027,0.001654,65922.0,65921.0,0.79831276]
[1727636792992,0.001654,65922.0,65921.0,0.79738012]
[1727636793594,0.001654,65922.0,65921.0,0.95376818]
[1727636796099,0.001654,65922.0,65921.0,0.95576818]
[1727636796302,0.001654,65922.0,65921.0,0.88757888]
[1727636797003,0.00147143,65922.0,65921.0,0.88757888]
[1727636797396,0.00147143,65922.0,65921.0,0.88763557]
[1727636798216,0.00147143,65922.0,65921.0,0.88563557]
[1727636799989,0.00147143,65922.0,65921.0,0.89171357]
[1727636801985,0.00147143,65922.0,65921.0,0.89097272]
[1727636802239,0.00147143,65922.0,65921.0,0.69796442]
[1727636802460,0.00147143,65922.0,65921.0,0.98178334]
[1727636808568,0.00147143,65922.0,65921.0,0.89082664]
[1727636810336,0.00147143,65922.0,65921.0,1.00452252]
[1727636812000,0.00147143,65922.0,65921.0,1.00368615]
[1727636812455,0.00147143,65922.0,65921.0,0.88991554]
[1727636814731,0.00147143,65922.0,65921.0,1.00368615]
[1727636816790,0.00147143,65922.0,65921.0,0.88991554]
[1727636817023,0.00147143,65922.0,65921.0,1.00368615]
[1727636818814,0.00147143,65922.0,65921.0,0.88991554]
[1727636819026,0.00147143,65922.0,65921.0,1.00368615]
[1727636820814,0.00147143,65922.0,65921.0,1.0028905]
[1727636824878,0.00147143,65922.0,65921.0,1.00186939]
[1727636827295,0.00147143,65922.0,65921.0,0.88807833]
[1727636827913,0.00147143,65922.0,65921.0,1.00189237]
[1727636828392,0.00147143,65922.0,65921.0,0.88807833]
[1727636834518,0.00147143,65922.0,65921.0,0.88624245]
[1727636838578,0.00147143,65922.0,65921.0,1.00004784]
[1727636839682,0.00124246,65922.0,65921.0,1.00004784]
[1727636844292,0.00124246,65922.0,65921.0,1.00005056]
[1727636847052,0.00124246,65922.0,65921.0,0.98605056]
[1727636847255,0.00124246,65922.0,65921.0,0.97205056]
[1727636847468,0.00124246,65922.0,65921.0,0.98605056]
[1727636848439,0.00074246,65922.0,65921.0,0.98605056]
[1727636848643,0.00074246,65922.0,65921.0,1.00005056]
[1727636849181,0.00074246,65922.0,65921.0,0.98502808]
[1727636849378,0.00074246,65922.0,65921.0,0.9990282]
[1727636851388,0.00074246,65922.0,65921.0,0.69796442]
[1727636856818,0.00074246,65922.0,65921.0,0.88497]
[1727636858604,0.00074246,65922.0,65921.0,0.69796442]
[1727636861195,0.00074246,65922.0,65921.0,0.86596442]
[1727636861425,0.00074246,65922.0,65921.0,0.89636442]
[1727636861784,0.00074246,65922.0,65921.0,1.06848885]
[1727636862401,0.00074246,65922.0,65921.0,1.08248885]
[1727636862601,0.00074246,65922.0,65921.0,1.06848885]
[1727636863000,0.00074246,65922.0,65921.0,1.08248885]
[1727636864060,0.00074246,65922.0,65921.0,1.08448885]
[1727636866251,0.00074246,65922.0,65921.0,0.89836442]
[1727636867019,0.00074246,65922.0,65921.0,1.08503742]
[1727636870422,0.00074246,65922.0,65921.0,1.08303742]
[1727636871213,0.00074246,65922.0,65921.0,1.1959098]
[1727636872862,0.00074246,65922.0,65921.0,1.08212225]
[1727636873940,0.00074246,65922.0,65921.0,1.08412225]
[1727636875889,0.00074246,65922.0,65921.0,0.99212225]
[1727636876117,0.00074246,65922.0,65921.0,0.99205318]
[1727636876556,0.00074246,65922.0,65921.0,0.91405318]
[1727636877830,0.00074246,65922.0,65921.0,0.80320771]
[1727636878042,0.00074246,65922.0,65921.0,0.731792]
[1727636878229,0.00074246,65922.0,65921.0,0.64074165]
[1727636878878,0.00074246,65922.0,65921.0,0.62674165]
[1727636879089,0.00074246,65922.0,65921.0,0.717792]
[1727636879298,0.00074246,65922.0,65921.0,0.731792]
[1727636879519,0.00074246,65922.0,65921.0,0.76912971]
[1727636879728,0.00074246,65922.0,65921.0,0.86018006]
[1727636879940,0.00074246,65922.0,65921.0,0.87418006]
[1727636880996,0.00074246,65922.0,65921.0,0.88818006]
[1727636881199,0.00074246,65922.0,65921.0,0.79712971]
[1727636881414,0.00074246,65922.0,65921.0,0.88818006]
[1727636881638,0.00074246,65922.0,65921.0,0.87418006]
[1727636882098,0.00074246,65922.0,65921.0,0.78312971]
[1727636882321,0.00074246,65922.0,65921.0,0.79712971]
[1727636883057,0.00074246,65922.0,65921.0,0.86540763]
[1727636884585,0.00074246,65922.0,65921.0,0.61144095]
[1727636886356,0.00074246,65922.0,65921.0,0.6569545]
[1727636886569,0.00074246,65922.0,65921.0,0.61144095]
[1727636887308,0.00074246,65922.0,65921.0,0.65695403]
[1727636888729,0.00074246,65922.0,65921.0,0.65695069]
[1727636893657,0.00074246,65922.0,65921.0,0.6569438]
[1727636894840,0.00074246,65922.0,65921.0,0.61144095]
[1727636903665,0.00074246,65922.0,65921.0,0.67969141]
[1727636904078,0.00074246,65922.0,65921.0,0.8619272]
[1727636904314,0.00074246,65922.0,65921.0,0.67969141]
[1727636904727,0.00074246,65922.0,65921.0,0.86190732]
[1727636905356,0.00074246,65922.0,65921.0,0.86192947]
[1727636912266,0.00074246,65922.0,65921.0,0.84792947]
[1727636912482,0.00074246,65922.0,65921.0,0.86192947]
[1727636913092,0.00074246,65922.0,65921.0,0.84792947]
[1727636913348,0.00074246,65922.0,65921.0,0.77967901]
[1727636913553,0.00074246,65922.0,65921.0,0.79367901]
[1727636915359,0.00074246,65922.0,65921.0,0.79371718]
[1727636916430,0.00074246,65922.0,65921.0,0.79571718]
[1727636916839,0.00074246,65922.0,65921.0,0.88673704]
[1727636917040,0.00074246,65922.0,65921.0,0.88673366]
[1727636917430,0.00074246,65922.0,65921.0,0.88673479]
[1727636917841,0.00074246,65922.0,65921.0,0.79571718]
[1727636918051,0.00074246,65922.0,65921.0,0.88673516]
[1727636918258,0.00074246,65922.0,65921.0,0.76771718]
[1727636918461,0.00074246,65922.0,65921.0,0.78171718]
[1727636918667,0.00074246,65922.0,65921.0,0.85873217]
[1727636918906,0.00074246,65922.0,65921.0,0.78171718]
[1727636919132,0.00074246,65922.0,65921.0,0.79571718]
[1727636919356,0.00074246,65922.0,65921.0,0.78171718]
[1727636919775,0.00074246,65922.0,65921.0,0.79571718]
[1727636920017,0.00074246,65922.0,65921.0,0.88673652]
[1727636920630,0.00074246,65922.0,65921.0,0.79571718]
[1727636921168,0.00074246,65922.0,65921.0,0.79371718]
[1727636922753,0.00074246,65922.0,65921.0,0.79352318]
[1727636923755,0.00074246,65922.0,65921.0,0.79552318]
[1727636924917,0.00074246,65922.0,65921.0,0.79352318]
[1727636927154,0.001556,65923.0,65922.0,0.42391154]
[1727636927358,0.001556,65923.0,65922.0,0.82590681]
[1727636927565,0.001556,65923.0,65922.0,0.9169484]
[1727636928020,0.001556,65923.0,65922.0,0.82593054]
[1727636928272,0.001556,65923.0,65922.0,0.83993054]
[1727636928487,0.001556,65923.0,65922.0,1.00264047]
[1727636928697,0.001556,65923.0,65922.0,0.93437601]
[1727636930911,0.001556,65923.0,65922.0,1.00264352]
[1727636931535,0.001556,65923.0,65922.0,1.00347152]
[1727636932170,0.001556,65923.0,65922.0,0.93613055]
[1727636933439,0.001556,65923.0,65922.0,1.00439746]
[1727636933644,0.001556,65923.0,65922.0,0.92395199]
[1727636933845,0.001556,65923.0,65922.0,1.00439746]
[1727636937091,0.001556,65923.0,65922.0,1.00436318]
[1727636937907,0.001556,65923.0,65922.0,0.82137069]
[1727636940718,0.001556,65923.0,65922.0,1.00453957]
[1727636941132,0.001556,65923.0,65922.0,1.00447852]
[1727636941613,0.001556,65923.0,65922.0,0.93619735]
[1727636943093,0.001556,65923.0,65922.0,1.00447928]
[1727636943510,0.001556,65923.0,65922.0,1.00448127]
[1727636943717,0.001556,65923.0,65922.0,0.93619735]
[1727636944543,0.001556,65923.0,65922.0,1.02723891]
[1727636944758,0.001556,65923.0,65922.0,0.93619735]
[1727636944965,0.001556,65923.0,65922.0,1.02723891]
[1727636945172,0.001556,65923.0,65922.0,0.93619735]
[1727636945356,0.001556,65923.0,65922.0,0.93558345]
[1727636945815,0.001556,65923.0,65922.0,1.02662554]
[1727636948236,0.001556,65923.0,65922.0,0.93558345]
[1727636948971,0.001556,65923.0,65922.0,1.03258345]
[1727636949203,0.001556,65923.0,65922.0,1.14098345]
[1727636950096,0.001556,65923.0,65922.0,1.25659977]
[1727636950583,0.001556,65923.0,65922.0,1.22859977]
[1727636950799,0.001556,65923.0,65922.0,1.24259977]
[1727636951216,0.001556,65923.0,65922.0,1.25659977]
[1727636955012,0.001556,65923.0,65922.0,1.25800858]
[1727636955190,0.001556,65923.0,65922.0,1.25600858]
[1727636956510,0.001556,65923.0,65922.0,1.14222341]
[1727636959764,0.001556,65923.0,65922.0,1.14223608]
[1727636960116,0.001556,65923.0,65922.0,1.14831508]
[1727636961033,0.001556,65923.0,65922.0,1.26209871]
[1727636961495,0.001556,65923.0,65922.0,1.14831508]
[1727636962408,0.001556,65923.0,65922.0,1.2393483]
[1727636962807,0.001556,65923.0,65922.0,1.14831508]
[1727636963041,0.001556,65923.0,65922.0,1.05131508]
[1727636963455,0.001556,65923.0,65922.0,1.04159307]
[1727636963687,0.001556,65923.0,65922.0,0.97331508]
[1727636964579,0.001556,65923.0,65922.0,0.78957705]
[1727636970090,0.001556,65923.0,65922.0,0.72424626]
[1727636970303,0.001556,65923.0,65922.0,0.80469173]
[1727636971579,0.001556,65923.0,65922.0,0.83509173]
[1727636972926,0.001556,65923.0,65922.0,0.78957705]
[1727636979646,0.001556,65923.0,65922.0,0.75917705]
[1727636980707,0.001556,65923.0,65922.0,0.74517705]